bitfinex/quotes_ETHUSD_20251120
["timestamp","ask_amount","ask_price","bid_price","bid_amount"]
[1763612349150,6.52792076,3027.4,3026.1,0.1783]
[1763612349151,0.405504,3027.2,3026.1,0.1783]
[1763612349471,0.405504,3027.2,3027.1,0.09924]
[1763612349676,1.76489832,3027.2,3027.1,0.09924]
[1763612349875,2.26099832,3027.2,3027.1,0.09924]
[1763612350263,2.73819832,3027.2,3027.1,0.09924]
[1763612350688,6.04158098,3027.2,3027.1,0.09924]
[1763612351469,6.04158098,3027.2,3026.7,0.09924]
[1763612351470,0.90699264,3027.1,3026.7,0.09924]
[1763612351772,0.405504,3026.9,3026.7,0.09924]
[1763612352096,0.405504,3026.7,3026.6,0.09924]
[1763612352378,0.901604,3026.7,3026.6,0.09924]
[1763612353077,4.68273237,3026.7,3026.6,0.09924]
[1763612354945,7.98666074,3026.7,3025.9,3.30477312]
[1763612355145,0.114,3026.6,3026.5,0.09924]
[1763612355342,0.93143607,3026.6,3026.5,0.09924]
[1763612355577,1.67213607,3026.6,3026.5,0.09924]
[1763612355750,0.114,3026.6,3026.5,0.09924]
[1763612355962,0.6101,3026.6,3026.5,0.09924]
[1763612357082,3.41803753,3026.6,3026.5,0.09924]
[1763612358990,3.91413753,3026.6,3026.5,0.09924]
[1763612362862,3.91413753,3026.6,3025.4,3.30532271]
[1763612362863,17.43452438,3026.6,3025.1,0.001]
[1763612363063,0.405504,3025.8,3025.1,0.1796]
[1763612363282,0.4961,3025.2,3025.1,0.001]
[1763612363495,1.015604,3025.2,3025.1,0.101]
[1763612363667,1.31988791,3025.2,3025.1,0.101]
[1763612363874,1.4995967,3025.2,3025.1,0.101]
[1763612364074,0.8781644,3025.7,3025.1,0.001]
[1763612364278,0.405504,3025.5,3025.1,0.4687]
[1763612364476,0.405504,3025.5,3025.4,0.1]
[1763612364673,0.519504,3025.5,3025.4,0.1]
[1763612364891,1.015604,3025.5,3025.4,0.1]
[1763612365093,1.492804,3025.5,3025.4,0.1]
[1763612365298,1.73278366,3025.5,3025.4,0.1]
[1763612366097,5.03802246,3025.5,3025.4,0.1]
[1763612366399,5.9450151,3025.5,3025.4,0.1]
[1763612370401,1.31249664,3025.2,3025.1,0.001]
[1763612370577,2.3146375,3025.2,3025.1,0.001]
[1763612370770,3.09828055,3025.2,3025.1,0.001]
[1763612370967,3.79661629,3025.2,3025.1,0.001]
[1763612371707,3.09828055,3025.2,3025.1,0.001]
[1763612371907,3.79631887,3025.2,3025.1,0.001]
[1763612372427,7.10188544,3025.2,3025.1,0.001]
[1763612372698,8.08793267,3025.2,3025.1,0.001]
[1763612372910,8.08794096,3025.2,3025.1,0.001]
[1763612373202,8.08792727,3025.2,3025.1,0.001]
[1763612373506,7.70088544,3025.2,3025.1,0.001]
[1763612374406,7.58688544,3025.2,3025.1,0.001]
[1763612374622,7.70088544,3025.2,3025.1,0.001]
[1763612374844,0.405504,3024.1,3024.0,0.1]
[1763612375013,1.00046847,3024.5,3024.0,0.5758]
[1763612375213,1.05862575,3024.8,3024.2,0.1]
[1763612375214,0.405504,3024.3,3024.2,0.1]
[1763612375844,1.351404,3024.3,3024.2,0.1]
[1763612376018,1.351404,3024.3,3024.0,0.1]
[1763612376019,1.73692293,3024.3,3024.0,0.1]
[1763612376217,9.9206349,3024.0,3022.6,0.485]
[1763612376418,9.9206349,3024.0,3022.4,0.1442]
[1763612376419,0.405504,3023.8,3023.2,0.1]
[1763612376736,0.405504,3023.8,3023.1,0.1442]
[1763612376737,0.405504,3023.8,3023.7,0.4758]
[1763612376915,0.519504,3023.8,3023.7,0.5758]
[1763612377415,0.405504,3023.8,3023.7,0.5758]
[1763612377620,0.519504,3023.8,3023.7,1.0608]
[1763612378141,0.519504,3023.8,3023.7,0.5758]
[1763612378457,5.21659367,3023.8,3023.7,0.1]
[1763612379063,5.21659367,3023.8,3023.1,0.1442]
[1763612379064,10.17044658,3023.8,3023.1,0.1442]
[1763612379234,8.9873907,3023.8,3023.1,0.1442]
[1763612379563,8.9873907,3023.8,3023.4,0.1]
[1763612379564,0.405504,3023.6,3023.4,0.1]
[1763612379730,0.405504,3023.6,3023.5,0.452]
[1763612379926,0.519504,3023.6,3023.5,0.552]
[1763612380136,0.4637,3024.5,3023.5,0.949]
[1763612380455,0.90699264,3024.1,3023.9,0.1]
[1763612380666,3.30665961,3024.2,3024.0,0.1]
[1763612380825,3.30665961,3024.2,3024.1,0.1]
[1763612381026,4.21365225,3024.2,3024.1,0.1]
[1763612381325,4.69665225,3024.2,3024.1,0.1]
[1763612381521,4.21365225,3024.2,3024.1,0.1]
[1763612381963,0.5877,3022.7,3022.4,0.90699264]
[1763612382209,0.4782,3022.5,3021.4,0.497]
[1763612382340,0.73549658,3024.0,3021.4,0.497]
[1763612382341,3.30764396,3023.3,3022.6,0.635]
[1763612382536,3.30764396,3023.3,3023.0,0.1]
[1763612382537,0.405504,3023.1,3023.0,0.1]
[1763612382727,7.20955513,3023.9,3023.2,0.635]
[1763612383040,5.21503646,3023.9,3023.8,0.1]
[1763612383370,0.405504,3023.8,3023.6,0.1]
[1763612383528,0.92700765,3023.8,3022.6,0.183]
[1763612383728,0.92700765,3023.8,3023.7,0.1]
[1763612384467,4.23410468,3023.8,3023.7,0.1]
[1763612384634,0.405504,3023.6,3023.5,0.1]
[1763612385187,1.25032344,3023.6,3023.5,0.1]
[1763612385327,1.77466488,3023.6,3023.4,0.1]
[1763612385673,0.520504,3023.5,3023.4,0.1]
[1763612385843,0.520504,3023.5,3022.6,0.68]
[1763612385844,0.405504,3023.4,3023.3,0.1]
[1763612386057,0.58850634,3023.4,3023.3,0.1]
[1763612386259,0.71020634,3023.4,3023.3,0.1]
[1763612386587,0.71020634,3023.4,3023.1,0.1]
[1763612386588,8.6935681,3023.4,3023.1,0.1]
[1763612386954,0.0046,3023.2,3023.1,0.1]
[1763612387166,0.405504,3023.0,3022.8,0.1]
[1763612387390,0.520504,3022.9,3022.8,0.1]
[1763612387683,0.405504,3022.8,3022.3,0.183]
[1763612387849,0.405504,3022.8,3022.7,0.1]
[1763612388050,0.405504,3022.8,3022.3,0.68]
[1763612388249,0.405504,3022.8,3022.7,0.1]
[1763612388483,4.62068772,3022.8,3022.7,0.1]
[1763612388682,5.48641867,3022.8,3022.7,0.1]
[1763612389464,0.405504,3022.6,3022.5,0.1]
[1763612390377,0.528204,3022.6,3022.5,0.1]
[1763612390582,5.43717289,3022.6,3022.5,0.1]
[1763612390748,6.39828238,3022.6,3022.5,0.1]
[1763612390948,5.7047161,3022.6,3022.5,0.1]
[1763612391148,11.67701223,3022.6,3022.5,0.1]
[1763612391780,11.21671223,3022.6,3022.5,0.1]
[1763612391954,11.09401223,3022.6,3022.5,0.1]
[1763612392659,11.09401223,3022.6,3021.1,0.183]
[1763612392660,0.405504,3022.4,3021.1,0.183]
[1763612392875,0.405504,3022.0,3021.4,0.1]
[1763612393183,0.115,3021.9,3021.5,0.497]
[1763612393384,0.520504,3021.9,3021.8,0.1]
[1763612393592,0.520504,3021.9,3021.8,0.552]
[1763612393894,0.69430329,3022.0,3021.9,0.1]
[1763612394093,0.115,3022.0,3021.2,0.497]
[1763612394273,0.115,3022.0,3021.9,0.1]
[1763612394458,3.42406684,3022.0,3021.9,0.552]
[1763612394667,3.82957084,3022.0,3021.9,0.552]
[1763612394875,3.82957084,3022.0,3021.9,0.1]
[1763612395075,0.405504,3021.9,3021.5,0.497]
[1763612395260,0.405504,3021.9,3021.8,0.1]
[1763612395475,2.99746025,3021.9,3021.8,0.1]
[1763612395797,2.99746025,3021.9,3021.1,0.183]
[1763612395798,3.29901143,3021.9,3021.1,0.183]
[1763612396097,2.30834766,3021.8,3021.7,0.1]
[1763612396264,3.76960393,3021.8,3021.7,0.1]
[1763612396691,7.07888978,3021.8,3021.7,0.1]
[1763612396867,7.94473649,3021.8,3021.7,0.1]
[1763612397269,7.19388978,3021.8,3021.7,0.1]
[1763612397594,4.82564087,3021.8,3021.7,0.1]
[1763612398593,3.30950489,3021.6,3021.4,0.1]
[1763612398796,3.30950489,3021.6,3021.0,0.001]
[1763612398797,0.99585102,3021.5,3021.1,0.183]
[1763612398996,1.09980384,3021.5,3021.4,0.1]
[1763612399202,1.40143206,3021.5,3021.4,0.1]
[1763612399518,1.40143206,3021.5,3021.1,0.183]
[1763612399519,0.405504,3021.4,3021.1,0.1]
[1763612399678,0.405504,3021.4,3021.0,0.001]
[1763612399679,1.71629248,3021.3,3021.0,0.101]
[1763612399883,0.30162822,3021.2,3021.1,0.1]
[1763612400405,0.30162822,3021.2,3021.1,0.735]
[1763612400706,4.30579986,3021.3,3021.1,1.232]
[1763612400905,4.30579986,3021.3,3021.2,1.049]
[1763612400906,3.3098718,3021.3,3021.2,1.049]
[1763612401113,3.3098718,3021.3,3021.2,0.452]
[1763612401279,3.30970921,3021.5,3021.2,1.049]
[1763612401607,0.115,3021.8,3021.4,0.452]
[1763612401770,0.115,3021.8,3021.7,0.552]
[1763612402306,0.115,3021.8,3021.7,1.049]
[1763612402617,0.115,3021.8,3021.7,0.552]
[1763612402618,3.42428585,3021.8,3021.7,0.552]
[1763612404112,0.405504,3021.7,3021.6,0.1]
[1763612404272,1.10030603,3021.7,3021.6,0.1]
[1763612404601,4.0041974,3021.7,3021.6,1.049]
[1763612404819,4.4097014,3021.7,3021.6,0.552]
[1763612404984,0.405504,3021.6,3021.5,0.1]
[1763612405175,1.10030603,3021.6,3021.5,0.1]
[1763612406405,1.14167484,3021.6,3021.5,0.1]
[1763612406708,0.69480203,3021.6,3021.5,1.049]
[1763612406880,0.86849464,3022.0,3021.5,1.049]
[1763612406881,0.115,3021.8,3021.7,0.1]
[1763612407282,0.69545007,3021.9,3021.8,0.1]
[1763612407606,0.81045007,3021.9,3021.8,0.1]
[1763612407817,0.69545007,3021.9,3021.8,1.049]
[1763612408173,0.69550175,3021.9,3021.8,0.949]
[1763612408482,0.81050175,3021.9,3021.8,1.049]
[1763612409093,4.11967809,3021.9,3021.8,1.049]
[1763612409296,0.81050175,3021.9,3021.8,1.049]
[1763612409492,0.69550175,3021.9,3021.8,0.1]
[1763612409693,3.30917634,3021.9,3021.8,0.1]
[1763612409897,4.00517113,3021.9,3021.8,0.5957]
[1763612410207,4.00517113,3021.9,3021.8,1.0943]
[1763612411725,0.69599479,3021.9,3021.8,1.0943]
[1763612413014,4.17702464,3022.5,3022.0,0.1]
[1763612413176,0.99921541,3022.4,3022.0,0.1]
[1763612413373,4.17702464,3022.5,3022.0,0.1]
[1763612413374,5.6197007,3022.3,3022.0,0.1]
[1763612413587,1.11421541,3022.2,3022.1,0.1921]
[1763612413789,0.115,3022.2,3022.1,0.1921]
[1763612413986,0.115,3022.2,3022.1,0.7878]
[1763612414226,0.115,3022.2,3022.1,1.2864]
[1763612414424,0.69688992,3022.4,3022.3,0.1]
[1763612414625,0.115,3022.8,3022.4,0.1]
[1763612414626,0.69688992,3022.5,3022.4,0.1]
[1763612414832,0.69688992,3022.7,3022.6,0.1]
[1763612415103,4.00519044,3022.7,3022.6,0.1]
[1763612415434,4.30791999,3022.7,3022.6,1.0943]
[1763612415594,4.30791999,3022.7,3022.6,0.1]
[1763612416199,8.82070383,3022.7,3022.1,0.1921]
[1763612416410,3.30830052,3022.7,3022.6,0.1]
[1763612416613,4.30925554,3022.7,3022.6,0.1]
[1763612417217,4.30925554,3022.7,3022.6,0.5957]
[1763612417936,4.30925554,3022.7,3022.6,1.0943]
[1763612418298,4.30925554,3022.7,3022.6,0.5957]
[1763612418708,4.30925554,3022.7,3022.6,1.0943]
[1763612420448,4.30948193,3022.7,3022.6,1.0943]
[1763612421147,4.00625578,3022.7,3022.6,1.0943]
[1763612421346,3.30830052,3022.7,3022.6,1.0943]
[1763612422447,6.61660104,3022.7,3022.1,0.1921]
[1763612422609,3.30830052,3022.7,3022.6,0.1]
[1763612423418,3.31030052,3022.7,3022.6,0.1]
[1763612423840,3.31030052,3022.7,3022.6,1.0943]
[1763612424045,3.31030052,3022.7,3022.6,0.9943]
[1763612424046,0.002,3022.7,3022.6,0.9943]
[1763612424247,0.002,3022.7,3022.6,1.0943]
[1763612426251,0.002,3022.7,3022.6,4.84299176]
[1763612426445,3.42212154,3023.8,3023.7,0.1]
[1763612426650,3.46346025,3023.8,3023.7,0.1]
[1763612426849,3.52062154,3023.8,3023.7,0.1]
[1763612427275,3.42212154,3023.8,3023.7,0.1]
[1763612427963,3.42212154,3023.8,3023.7,0.5621]
[1763612428565,3.42212154,3023.8,3023.7,1.0169]
[1763612429159,4.21365225,3024.2,3024.1,0.1]
[1763612429459,5.25339924,3024.2,3024.1,0.1]
[1763612429660,5.316366,3024.2,3024.1,0.1]
[1763612430049,5.212066,3024.2,3024.1,0.1]
[1763612430864,4.32865225,3024.2,3024.1,0.1]
[1763612431243,3.94959285,3024.2,3024.1,0.1]
[1763612431950,3.94959285,3024.2,3023.4,0.4548]
[1763612431951,7.25625246,3024.2,3023.4,0.4548]
[1763612432156,3.90825961,3024.2,3024.1,0.1]
[1763612432467,4.35509685,3024.2,3024.1,0.1]
[1763612432669,5.19672159,3024.2,3024.1,0.1]
[1763612433032,5.12812159,3024.2,3024.1,0.1]
[1763612433366,5.08678835,3024.2,3024.1,0.1]
[1763612433668,4.60018835,3024.2,3024.1,0.1]
[1763612434558,3.42165961,3024.2,3024.1,0.5621]
[1763612434739,4.21343358,3024.4,3024.2,0.4621]
[1763612434940,4.21343358,3024.4,3024.3,0.1]
[1763612434941,3.30644094,3024.4,3024.3,0.1]
[1763612435139,3.42044094,3024.4,3024.3,0.5621]
[1763612435656,3.42044094,3024.4,3024.3,1.0169]
[1763612436670,3.30571306,3025.1,3024.3,0.9169]
[1763612436858,3.30571306,3025.1,3025.0,0.1]
[1763612437063,3.97844102,3025.1,3025.0,0.1]
[1763612438478,3.30571306,3025.1,3025.0,0.5934]
[1763612439670,3.30756658,3025.2,3025.1,0.1]
[1763612439856,0.877804,3025.1,3024.2,0.4582]
[1763612440046,0.405504,3025.1,3025.0,0.1]
[1763612440264,1.49655437,3025.1,3025.0,0.1]
[1763612440473,2.96054701,3025.1,3024.4,0.1]
[1763612440767,1.31249664,3024.6,3024.5,0.1]
[1763612440972,1.42649664,3024.6,3024.5,0.1]
[1763612441174,2.03119483,3024.6,3024.5,0.1]
[1763612441352,2.48799483,3024.6,3024.5,0.1]
[1763612441672,5.88641714,3024.6,3024.5,0.1]
[1763612441871,5.92774491,3024.6,3024.5,0.1]
[1763612442046,5.88641714,3024.6,3024.5,0.1]
[1763612443180,5.81374491,3024.6,3024.5,0.1]
[1763612443473,5.81374491,3024.6,3024.1,0.001]
[1763612443474,0.4791,3024.5,3024.1,0.001]
[1763612443784,5.67840275,3024.5,3024.4,0.1]
[1763612444158,6.44829865,3024.5,3024.4,0.1]
[1763612444765,10.59058394,3024.5,3024.4,0.1]
[1763612445075,10.00578804,3024.5,3024.4,0.1]
[1763612445280,10.7048981,3024.5,3024.4,0.1]
[1763612445467,11.1789981,3024.5,3024.4,0.1]
[1763612446874,10.47988804,3024.5,3024.4,0.1]
[1763612447276,11.17927237,3024.5,3024.4,0.1]
[1763612448180,11.48256995,3024.5,3024.4,0.1]
[1763612448678,11.00846995,3024.5,3024.4,0.1]
[1763612449372,10.70517237,3024.5,3024.4,0.1]
[1763612450471,9.35331355,3024.5,3024.4,0.1]
[1763612451576,10.1293059,3024.5,3024.4,0.1]
[1763612452177,10.4333631,3024.5,3024.4,0.1]
[1763612453485,10.3581631,3024.5,3024.4,0.1]
[1763612453868,10.3581631,3024.5,3024.4,0.5934]
[1763612454682,10.3581631,3024.5,3024.4,0.1]
[1763612454978,5.62367781,3024.5,3024.4,0.5934]
[1763612455374,5.73767781,3024.5,3024.4,0.5934]
[1763612455690,4.31118117,3024.5,3024.4,1.0516]
[1763612455854,5.02811661,3024.5,3024.4,0.9516]
[1763612456055,5.33260916,3024.5,3024.4,0.5934]
[1763612456387,5.02811661,3024.5,3024.4,0.5934]
[1763612456752,5.43362061,3024.5,3024.4,0.5934]
[1763612457300,5.73822627,3024.5,3024.4,0.5934]
[1763612457985,5.43362061,3024.5,3024.4,0.5934]
[1763612458164,5.73825689,3024.5,3024.4,0.5934]
[1763612458363,5.73825689,3024.5,3024.4,1.0516]
[1763612458685,5.43362061,3024.5,3024.4,1.0516]
[1763612458978,4.91411661,3024.5,3024.4,1.0516]
[1763612459180,5.43362061,3024.5,3024.4,1.0516]
[1763612459392,0.90699264,3024.9,3024.7,0.1]
[1763612459557,0.114,3024.8,3024.7,0.1]
[1763612459750,0.114,3024.8,3024.7,0.5934]
[1763612459969,0.519504,3024.8,3024.7,0.5934]
[1763612460166,3.8255077,3024.8,3024.7,1.0516]
[1763612460366,4.73250034,3024.8,3024.7,1.0516]
[1763612460563,0.114,3024.8,3024.7,1.0516]
[1763612461695,0.002,3025.1,3025.0,0.1]
[1763612461855,0.116,3025.1,3025.0,0.5934]
[1763612462060,0.116,3025.1,3025.0,1.0516]
[1763612462480,1.09409264,3025.1,3024.5,0.4582]
[1763612462760,1.31449664,3025.1,3025.0,0.1]
[1763612462976,0.521504,3025.1,3025.0,0.5934]
[1763612463185,0.407504,3025.1,3025.0,0.5934]
[1763612463687,0.407504,3025.1,3025.0,1.0516]
[1763612463870,0.521504,3025.1,3025.0,1.0516]
[1763612464190,3.71317984,3025.1,3025.0,0.1]
[1763612464488,4.73417248,3025.1,3025.0,0.1]
[1763612465374,4.62017248,3025.1,3025.0,0.5934]
[1763612465596,4.73417248,3025.1,3025.0,1.0516]
[1763612465885,0.002,3025.1,3025.0,1.0516]
[1763612466303,0.002,3025.2,3025.0,1.0516]
[1763612466304,0.002,3025.2,3025.0,4.25738512]
[1763612466590,3.3044636,3026.3,3025.1,1.99752309]
[1763612466755,3.3041467,3026.5,3026.3,0.1896]
[1763612467174,3.3041467,3026.5,3026.4,0.4934]
[1763612467376,4.32513934,3026.5,3026.4,0.4934]
[1763612467771,3.4181467,3026.5,3026.4,0.9516]
[1763612467984,3.4181467,3026.5,3026.4,1.0516]
[1763612467985,4.32513934,3026.5,3026.4,1.0516]
[1763612470019,7.62928604,3026.5,3026.0,0.1902]
[1763612470217,7.62928604,3026.5,3025.8,0.4505]
[1763612470218,6.28621333,3026.5,3026.4,0.1]
[1763612470380,6.28621333,3026.5,3025.3,0.4505]
[1763612470381,1.31249664,3026.4,3025.3,0.4505]
[1763612470580,1.31249664,3025.8,3025.7,0.1]
[1763612470799,0.519504,3025.8,3025.4,0.4505]
[1763612471002,0.405504,3026.1,3025.7,0.4984]
[1763612471203,0.405504,3026.1,3026.0,0.1]
[1763612471398,0.519504,3026.1,3026.0,0.1]
[1763612471781,0.405504,3026.1,3026.0,0.1]
[1763612471985,0.519504,3026.1,3026.0,0.1]
[1763612472223,0.90699264,3026.4,3026.0,1.0489]
[1763612472527,2.43520107,3027.4,3026.0,0.1]
[1763612472528,0.114,3026.1,3026.0,0.1]
[1763612472705,0.90699264,3026.3,3026.2,0.1]
[1763612473025,0.002,3026.6,3026.2,0.1]
[1763612473026,0.002,3026.6,3026.3,0.1]
[1763612473316,1.02099264,3026.5,3026.3,0.5505]
[1763612473721,1.02099264,3026.5,3026.4,0.4984]
[1763612474421,4.32513934,3026.5,3026.4,0.5984]
[1763612474999,4.21113934,3026.5,3026.4,1.0489]
[1763612475202,4.32513934,3026.5,3026.4,1.0489]
[1763612476525,4.21113934,3026.5,3026.4,1.0489]
[1763612476839,3.4181467,3026.5,3026.4,1.0489]
[1763612477392,3.3041467,3026.5,3026.4,1.0489]
[1763612477808,0.405504,3026.4,3026.3,0.1]
[1763612478205,6.6082934,3026.5,3026.3,0.4984]
[1763612478406,3.7096507,3026.5,3026.4,0.5984]
[1763612478611,3.3041467,3026.5,3026.4,1.0489]
[1763612479209,3.4181467,3026.5,3026.4,1.0489]
[1763612480228,3.4201467,3026.5,3026.4,1.0489]
[1763612481830,3.4201467,3026.5,3026.4,0.5984]
[1763612482515,3.4201467,3026.5,3026.4,0.1]
[1763612482836,4.90326307,3026.5,3026.4,0.1]
[1763612483019,5.81025571,3026.5,3026.4,0.1]
[1763612483623,6.28085571,3026.5,3026.4,0.1]
[1763612484105,5.62165571,3026.5,3026.4,0.1]
[1763612484306,1.31249664,3026.4,3026.3,0.1]
[1763612484504,4.61675252,3026.4,3026.3,1.0489]
[1763612484732,4.32524852,3026.4,3026.3,1.0489]
[1763612485808,4.21124852,3026.4,3026.3,1.0489]
[1763612486005,4.32524852,3026.4,3026.3,0.5984]
[1763612486411,4.32524852,3026.4,3026.3,0.1]
[1763612486615,5.49409204,3026.4,3026.3,0.1]
[1763612487113,5.56869204,3026.4,3026.3,0.1]
[1763612490908,0.405504,3026.3,3026.2,0.1]
[1763612491109,1.44471413,3026.3,3026.2,0.1]
[1763612491339,4.82767919,3026.3,3026.2,0.1]
[1763612492208,3.70986906,3026.3,3026.2,0.1]
[1763612492416,4.7308617,3026.3,3026.2,0.5668]
[1763612492635,4.7308617,3026.3,3026.2,1.038]
[1763612492941,4.7308617,3026.3,3026.2,0.5668]
[1763612493513,4.8059617,3026.3,3026.2,0.1]
[1763612493712,5.27924787,3026.3,3026.2,0.1]
[1763612494239,5.6252982,3026.3,3026.2,0.1]
[1763612494441,0.405504,3026.1,3025.0,0.001]
[1763612494645,1.31249664,3025.7,3025.6,0.1]
[1763612494882,3.04691363,3025.7,3025.6,0.1]
[1763612495046,3.59621742,3025.7,3025.6,0.1]
[1763612495343,6.35203774,3025.7,3025.6,0.1]
[1763612495546,6.23803774,3025.7,3025.6,0.1]
[1763612495715,5.73877123,3025.7,3025.6,0.1]
[1763612495916,6.20627123,3025.7,3025.6,0.1]
[1763612496337,5.73877123,3025.7,3025.6,0.1]
[1763612497741,5.62477123,3025.7,3025.6,0.5668]
[1763612498043,5.73877123,3025.7,3025.6,0.5668]
[1763612498550,5.43392167,3025.7,3025.6,0.5668]
[1763612498850,5.31992167,3025.7,3025.6,0.5668]
[1763612499225,5.43292167,3025.7,3025.6,0.5668]
[1763612499946,4.73051696,3025.7,3025.6,0.5668]
[1763612500142,4.80561696,3025.7,3025.6,0.1]
[1763612500344,15.53420679,3025.7,3025.5,0.001]
[1763612500662,0.0123,3025.6,3025.5,0.101]
[1763612501228,0.1253,3025.6,3025.5,0.101]
[1763612502382,4.3374222,3025.6,3025.5,0.101]
[1763612503458,6.65189108,3025.6,3025.5,0.101]
[1763612503663,7.6575202,3025.6,3025.5,0.101]
[1763612504033,7.6575202,3025.6,3025.5,0.001]
[1763612504233,7.6575202,3025.6,3025.5,0.101]
[1763612504830,7.0820202,3025.6,3025.5,0.101]
[1763612505048,6.49375122,3025.6,3025.5,0.001]
[1763612505246,6.49375122,3025.6,3025.5,0.101]
[1763612505442,6.18939108,3025.6,3025.5,0.101]
[1763612506050,6.49361925,3025.6,3025.5,0.101]
[1763612506255,6.18939108,3025.6,3025.5,0.101]
[1763612507272,6.38579108,3025.6,3025.5,0.101]
[1763612507966,6.73126147,3025.6,3025.5,0.101]
[1763612508171,7.15244736,3025.6,3025.5,0.101]
[1763612508846,6.27279108,3025.6,3025.5,0.101]
[1763612509465,4.7306262,3025.6,3025.5,0.5687]
[1763612509844,3.71063356,3025.6,3025.5,0.5687]
[1763612510046,3.30512956,3025.6,3025.5,1.0339]
[1763612510249,4.3251222,3025.6,3025.5,1.0339]
[1763612510452,4.7306262,3025.6,3025.5,1.0339]
[1763612511050,4.6176262,3025.6,3025.5,1.0339]
[1763612511452,4.7306262,3025.6,3025.5,1.0339]
[1763612512559,4.6176262,3025.6,3025.5,1.0339]
[1763612512762,3.30512956,3025.6,3025.5,1.0339]
[1763612513172,3.41812956,3025.6,3025.5,1.0339]
[1763612513773,3.30512956,3025.6,3025.5,1.0339]
[1763612514074,0.113,3025.6,3025.5,1.0339]
[1763612514271,3.3050688,3025.7,3025.6,0.1]
[1763612514469,3.4180688,3025.7,3025.6,1.0329]
[1763612515069,0.113,3025.7,3025.6,1.0329]
[1763612515277,3.41802032,3025.7,3025.6,1.0329]
[1763612515871,0.90699264,3026.2,3026.1,0.1]
[1763612515872,3.30447425,3026.2,3026.1,0.1]
[1763612516071,3.30447425,3026.2,3026.1,0.7641]
[1763612516072,3.41747425,3026.2,3026.1,0.7641]
[1763612516274,3.41747425,3026.2,3026.1,1.2293]
[1763612518175,4.30677825,3026.2,3026.1,0.1]
[1763612518375,6.0816913,3026.2,3026.1,0.1]
[1763612518557,10.86055384,3026.2,3026.1,0.1]
[1763612518754,11.86684675,3026.2,3026.1,0.1]
[1763612519346,1.31249664,3026.1,3025.5,0.001]
[1763612519680,0.405504,3025.9,3025.5,0.001]
[1763612519870,0.405504,3025.7,3025.5,0.001]
[1763612520174,0.405504,3025.7,3025.6,0.1]
[1763612520380,0.61380369,3025.7,3025.6,0.1]
[1763612520544,0.70040369,3025.7,3025.6,0.1]
[1763612521278,4.73051696,3025.7,3025.6,0.5677]
[1763612521475,4.61751696,3025.7,3025.6,0.5677]
[1763612521657,4.73051696,3025.7,3025.6,0.5677]
[1763612521862,4.73051696,3025.7,3025.6,0.1]
[1763612522069,4.73051696,3025.7,3025.6,0.5677]
[1763612522380,4.73051696,3025.7,3025.6,0.1]
[1763612522580,4.73051696,3025.7,3025.6,0.5677]
[1763612522989,4.73051696,3025.7,3025.6,1.0329]
[1763612523454,4.61751696,3025.7,3025.6,1.0329]
[1763612523654,4.73051696,3025.7,3025.6,1.0329]
[1763612524487,3.30502032,3025.7,3025.6,1.0329]
[1763612524652,3.41802032,3025.7,3025.6,1.0329]
[1763612526880,3.82352432,3025.7,3025.6,0.4677]
[1763612527086,3.82352432,3025.7,3025.6,0.5677]
[1763612527882,3.41802032,3025.7,3025.6,1.0329]
[1763612528899,3.30502032,3025.7,3025.6,1.0329]
[1763612529089,3.41802032,3025.7,3025.6,1.0329]
[1763612530402,3.41802032,3025.7,3025.6,0.1]
[1763612530604,3.82352432,3025.7,3025.6,0.5521]
[1763612531408,3.82352432,3025.7,3025.6,1.0391]
[1763612531868,3.30502032,3025.7,3025.6,1.0391]
[1763612532069,3.30458345,3026.1,3026.0,0.1]
[1763612532309,3.41758345,3026.1,3026.0,1.0391]
[1763612533099,3.41758345,3026.1,3026.0,0.5521]
[1763612535469,3.41758345,3026.1,3026.0,1.0391]
[1763612536070,3.30458345,3026.1,3026.0,1.0391]
[1763612536277,3.41758345,3026.1,3026.0,1.0391]
[1763612537094,0.002,3026.1,3026.0,1.0391]
[1763612537716,0.002,3026.1,3026.0,1.47349617]
[1763612538607,0.002,3026.1,3026.0,1.0391]
[1763612539528,0.002,3026.1,3026.0,4.34379266]
[1763612541376,0.002,3026.1,3026.0,1.0391]
[1763612541605,0.002,3026.1,3026.0,4.34379266]
[1763612541987,0.002,3026.1,3026.0,1.0391]
[1763612542414,0.002,3026.1,3026.0,1.47349298]
[1763612543937,0.002,3026.1,3026.0,4.77818564]
[1763612544812,0.002,3026.4,3026.0,8.88987094]
[1763612545010,0.002,3026.4,3026.3,0.7347]
[1763612545238,0.002,3026.4,3026.3,0.8477]
[1763612545428,0.002,3026.4,3026.3,1.55886926]
[1763612546432,0.002,3026.4,3026.3,4.86323432]
[1763612548238,0.002,3026.4,3026.3,4.75023432]
[1763612549416,0.002,3026.4,3026.3,8.29404621]
[1763612550242,0.002,3026.4,3026.3,4.75023432]
[1763612550947,0.002,3026.4,3026.3,4.86323432]
[1763612551715,0.002,3026.4,3026.3,8.40704621]
[1763612552748,0.002,3026.4,3026.3,9.31403885]
[1763612552922,0.002,3026.5,3026.4,1.00699264]
[1763612553144,0.002,3026.5,3026.4,2.79514873]
[1763612554517,0.002,3026.5,3026.4,6.09940461]
[1763612555044,0.002,3026.6,3026.5,0.1]
[1763612555346,0.002,3026.6,3026.5,1.015]
[1763612556446,0.002,3026.8,3026.6,3.487]
[1763612556635,0.002,3027.7,3026.7,8.97724236]